Workbook

Sheet PRC Correction_PDMS_PAHs
B2: Note: This Excel file can be used to calculate the PRC correction for PDMS.
B3: Please input parameters in all the highlighted cells
B4: In this file, PAH16 are the target compounds and 4 dPAH are the PRCs as an example.
B7: 1. Select PRCs | F7: PRC parameters
F8: PRC | G8: logKow (SPARC Estimates) | H8: logKf (Ghosh et al., 2014)
B9: PRCs | C9: logKow | D9: logKf | F9: d10-fluoranthene | G9: 5.29 | H9: =0.725*G9+0.479 -> 4.31425
B10: d10-fluoranthene | C10: =Findvalue(B10) -> 5.29 | D10: =0.725*C10+0.479 -> 4.31425 | F10: d12-chrysene | G10: 5.9 | H10: =0.725*G10+0.479 -> 4.7565
B11: d12-chrysene | C11: =Findvalue(B11) -> 5.9 | D11: =0.725*C11+0.479 -> 4.7565 | F11: d12-benzo[b]fluoranthene | G11: 6.58 | H11: =0.725*G11+0.479 -> 5.2495
B12: d12-benzo[b]fluoranthene | C12: =Findvalue(B12) -> 6.58 | D12: 5.2495 | F12: d14-dibenz[a]anthracene | G12: 7.39 | H12: 5.83675
B13: d14-dibenz[a]anthracene | C13: =Findvalue(B13) -> 7.39 | D13: 5.83675 | F13: PCB C13 28* | G13: 5.67 | H13: 4.58975
F14: PCB C13 52* | G14: 5.84 | H14: 4.713
F15: PCB C13 101* | G15: 6.38 | H15: 5.1045
F16: PCB C13 138* | G16: 6.83 | H16: 5.43075
F17: PCB C13 153* | G17: 6.92 | H17: 5.496
F18: PCB C13 180* | G18: 7.36 | H18: 5.815
F19: PCB C13 209* | G19: 8.18 | H19: 6.4095
G20: * Kow values from Hawker and Connell, 1988
B22: 2. Input parameters | C22: Enter fiber dimensions, time of deployment | E22: In addition, enter segment length and solvent volume for analysis and the measured concentrations in extract for PRCs both initially and after deployemnt
B24: PDMS fibers parameters
B25: Outer diameter of the SPME fiber (um) | D25: 558.8
B26: Outer diameter of the SPME fiber (um) | D26: 486
B27: Time of deployment (days) | D27: 20
B29: PRC C0 Samples parameters
F30: =B10 -> d10-fluoranthene | G30: =B11 -> d12-chrysene | H30: =B12 -> d12-benzo[b]fluoranthene | I30: =B13 -> d14-dibenz[a]anthracene
C31: PDMS Segment Length (cm) | D31: Solvent Volume (L) | E31: Dilution Factor | F31: Extracted Concentrations
B32: PRC Co Sample 1 | C32: 2 | D32: =0.00025 -> 0.00025 | E32: =D32/(PI()*(($D$25/10^6)^2-($D$26/10^6)^2)/4*C32/100*1000) -> 209.2452405 | F32: 43.86552603 | G32: 90.09562886 | H32: 75.66230979 | I32: 36.99332241
B33: PRC Co Sample 2
B34: PRC Co Sample 3
B36: Samples parameters
F37: =B10 -> d10-fluoranthene | G37: =B11 -> d12-chrysene | H37: =B12 -> d12-benzo[b]fluoranthene | I37: =B13 -> d14-dibenz[a]anthracene
C38: PDMS Segment Length (cm) | D38: Solvent Volume (L) | E38: Dilution Factor | F38: Extracted Concentrations
B39: Sample 1 | C39: 4 | D39: =0.00016 -> 0.00016 | E39: =D39/(PI()*(($D$25/10^6)^2-($D$26/10^6)^2)/4*C39/100*1000) -> 66.95847698 | F39: 14.10879492 | G39: 55.84439806 | H39: 79.75876328 | I39: 48.73058051
B40: Sample 2
B41: Sample 3
B42: Sample 4
B43: Sample 5
B51: 3. Calculations
B53: Initial PRC concentrations
C54: Concentrations (µg/L)
C55: =B10 -> d10-fluoranthene | D55: =B11 -> d12-chrysene | E55: =B12 -> d12-benzo[b]fluoranthene | F55: =B13 -> d14-dibenz[a]anthracene
B56: PRC Co Sample 1 | C56: =F32*$E32/10^D$10 -> 0.4451731167 | D56: =G32*$E32/10^D$11 -> 0.3302625345 | E56: =H32*$E32/10^D$12 -> 0.0891323144 | F56: =I32*$E32/10^D$13 -> 0.01127272535
B57: PRC Co Sample 2
B58: PRC Co Sample 3
B60: Avg PRC Co | C60: =AVERAGE(C56:C58) -> 0.4451731167 | D60: =AVERAGE(D56:D58) -> 0.3302625345 | E60: =AVERAGE(E56:E58) -> 0.0891323144 | F60: =AVERAGE(F56:F58) -> 0.01127272535
B63: PRC concentrations in samples after equlibriation
C64: Concentrations (µg/L)
C65: =B10 -> d10-fluoranthene | D65: =B11 -> d12-chrysene | E65: =B12 -> d12-benzo[b]fluoranthene | F65: =B13 -> d14-dibenz[a]anthracene
B66: Sample 1 | C66: =IF(F39="","",F39*$E39/10^D$10) -> 0.04581898745 | D66: =IF(G39="","",G39*$E39/10^D$11) -> 0.0655066184 | E66: =IF(H39="","",H39*$E39/10^D$12) -> 0.03006657633 | F66: =IF(I39="","",I39*$E39/10^D$13) -> 0.004751789042
B67: Sample 2 | C67: =IF(F40="","",F40*$E40/10^D$10) ->  | D67: =IF(G40="","",G40*$E40/10^D$11) ->  | E67: =IF(H40="","",H40*$E40/10^D$12) ->  | F67: =IF(I40="","",I40*$E40/10^D$13) -> 
B68: Sample 3 | C68: =IF(F41="","",F41*$E41/10^D$10) ->  | D68: =IF(G41="","",G41*$E41/10^D$11) ->  | E68: =IF(H41="","",H41*$E41/10^D$12) ->  | F68: =IF(I41="","",I41*$E41/10^D$13) -> 
B70: Avg Sample PRC Conc. | C70: =AVERAGE(C66:C68) -> 0.04581898745 | D70: =AVERAGE(D66:D68) -> 0.0655066184 | E70: =AVERAGE(E66:E68) -> 0.03006657633 | F70: =AVERAGE(F66:F68) -> 0.004751789042
B73: C/Co caculation for PRCs
B74: C/Co | C74: =B10 -> d10-fluoranthene | D74: =B11 -> d12-chrysene | E74: =B12 -> d12-benzo[b]fluoranthene | F74: =B13 -> d14-dibenz[a]anthracene
B75: Sample 1 | C75: =C66/C$56 -> 0.1029239766 | D75: =D66/D$56 -> 0.1983471074 | E75: 0.3373252062 | F75: 0.421529745
B76: Sample 2
B77: Sample 3
B79: Avg | C79: =AVERAGE(C75:C77) -> 0.1029239766 | D79: =AVERAGE(D75:D77) -> 0.1983471074 | E79: =AVERAGE(E75:E77) -> 0.3373252062 | F79: =AVERAGE(F75:F77) -> 0.421529745
B82: fss caculation for PRCs | C82: fss=1-C/Co
B83: fss | C83: =B10 -> d10-fluoranthene | D83: =B11 -> d12-chrysene | E83: =B12 -> d12-benzo[b]fluoranthene | F83: =B13 -> d14-dibenz[a]anthracene
B84: Sample 1 | C84: =1-C75 -> 0.8970760234 | D84: =1-D75 -> 0.8016528926 | E84: 0.6626747938 | F84: 0.578470255
B85: Sample 2
B86: Sample 3
B88: Avg | C88: =AVERAGE(C84:C86) -> 0.8970760234 | D88: =AVERAGE(D84:D86) -> 0.8016528926 | E88: =AVERAGE(E84:E86) -> 0.6626747938 | F88: =AVERAGE(F84:F86) -> 0.578470255
B91: RD caculation for PRCs
B92: logkow | C92: =C10 -> 5.29 | D92: =C11 -> 5.9 | E92: =C12 -> 6.58 | F92: =C13 -> 7.39
B93: RD (m2/d) | C93: =B10 -> d10-fluoranthene | D93: =B11 -> d12-chrysene | E93: =B12 -> d12-benzo[b]fluoranthene | F93: =B13 -> d14-dibenz[a]anthracene
B94: Sample 1 | C94: =VLOOKUP(C75,'PRC Model'!$D$4:$E$687,2,TRUE)*'PRC Model'!$H$3^2/'PRC Model'!$H$4*(10^'PRC Correction_PDMS_PAHs'!$D$10)^2 -> 0.7383929951 | D94: =VLOOKUP(D75,'PRC Model'!$D$4:$E$687,2,TRUE)*'PRC Model'!$H$3^2/'PRC Model'!$H$4*(10^'PRC Correction_PDMS_PAHs'!D$11)^2 -> 1.358309724 | E94: =VLOOKUP(E75,'PRC Model'!$D$4:$E$687,2,TRUE)*'PRC Model'!$H$3^2/'PRC Model'!$H$4*(10^'PRC Correction_PDMS_PAHs'!D$12)^2 -> 3.653392299 | F94: =VLOOKUP(F75,'PRC Model'!$D$4:$E$687,2,TRUE)*'PRC Model'!$H$3^2/'PRC Model'!$H$4*(10^'PRC Correction_PDMS_PAHs'!D$13)^2 -> 28.93824429
B95: Sample 2
B96: Sample 3
B98: Avg | C98: =AVERAGE(C94:C96) -> 0.7383929951 | D98: =AVERAGE(D94:D96) -> 1.358309724 | E98: =AVERAGE(E94:E96) -> 3.653392299 | F98: =AVERAGE(F94:F96) -> 28.93824429
B101: LogRD caculation for PRCs
B103: logRD (m2/d) | C103: =B10 -> d10-fluoranthene | D103: =B11 -> d12-chrysene | E103: =B12 -> d12-benzo[b]fluoranthene | F103: =B13 -> d14-dibenz[a]anthracene
B104: Sample 1 | C104: =LOG(C94) -> -0.131712432 | D104: 0.1329988097 | E104: 0.5626963089 | F104: 1.461472179
B105: Sample 2
B106: Sample 3
B108: Avg | C108: =AVERAGE(C104:C106) -> -0.131712432 | D108: =AVERAGE(D104:D106) -> 0.1329988097 | E108: =AVERAGE(E104:E106) -> 0.5626963089 | F108: =AVERAGE(F104:F106) -> 1.461472179
B112: 4. Results
D113: Note: plot logKow vs. logRD for sample 1, get a trend line, of which the parameters are usd in calculating fss of target compounds
D114: Note: can calculated the fss for bothe averaged sample data and individual sample data.
D132: alpha | E132: 0.7565 | F132: Enter slope and intercept of best fit line here
D133: beta | E133: -4.252 | F133: Currently using average
B134: fss caculation for target compounds
E135: RD (m2/d) | F135: fss
B136: Target compounds | C136: logKow | D136: logKf | E136: Sample 1 | F136: Sample 1
B137: Naphthalene | C137: 3.41 | D137: =0.725*C137+0.479 -> 2.95125 | E137: =10^E$133*(10^$C137)^E$132 -> 0.02126498105 | F137: =1-EXP(E137*'PRC Model'!$H$4/(10^'PRC Correction_PDMS_PAHs'!$D137)^2/'PRC Model'!$H$3^2)*ERFC(SQRT(E137*'PRC Model'!$H$4/(10^'PRC Correction_PDMS_PAHs'!$D137)^2/'PRC Model'!$H$3^2)) -> 0.9737152012
B138: Fluorene | C138: 4.2 | D138: =0.725*C138+0.479 -> 3.524 | E138: 0.08419765576 | F138: =1-EXP(E138*'PRC Model'!$H$4/(10^'PRC Correction_PDMS_PAHs'!$D138)^2/'PRC Model'!$H$3^2)*ERFC(SQRT(E138*'PRC Model'!$H$4/(10^'PRC Correction_PDMS_PAHs'!$D138)^2/'PRC Model'!$H$3^2)) -> 0.9507443307
B139: Acenaphthene | C139: 4.06 | D139: 3.4225 | E139: 0.06597661047 | F139: =1-EXP(E139*'PRC Model'!$H$4/(10^'PRC Correction_PDMS_PAHs'!$D139)^2/'PRC Model'!$H$3^2)*ERFC(SQRT(E139*'PRC Model'!$H$4/(10^'PRC Correction_PDMS_PAHs'!$D139)^2/'PRC Model'!$H$3^2)) -> 0.9559201923
B140: Phenanthrene | C140: 4.74 | D140: 3.9155 | E140: 0.2156800621 | F140: =1-EXP(E140*'PRC Model'!$H$4/(10^'PRC Correction_PDMS_PAHs'!$D140)^2/'PRC Model'!$H$3^2)*ERFC(SQRT(E140*'PRC Model'!$H$4/(10^'PRC Correction_PDMS_PAHs'!$D140)^2/'PRC Model'!$H$3^2)) -> 0.9245795482
B141: Anthracene | C141: 4.69 | D141: 3.87925 | E141: 0.1976901359 | F141: =1-EXP(E141*'PRC Model'!$H$4/(10^'PRC Correction_PDMS_PAHs'!$D141)^2/'PRC Model'!$H$3^2)*ERFC(SQRT(E141*'PRC Model'!$H$4/(10^'PRC Correction_PDMS_PAHs'!$D141)^2/'PRC Model'!$H$3^2)) -> 0.9274825889
B142: Fluoranthene | C142: 5.29 | D142: 4.31425 | E142: 0.5621924384 | F142: =1-EXP(E142*'PRC Model'!$H$4/(10^'PRC Correction_PDMS_PAHs'!$D142)^2/'PRC Model'!$H$3^2)*ERFC(SQRT(E142*'PRC Model'!$H$4/(10^'PRC Correction_PDMS_PAHs'!$D142)^2/'PRC Model'!$H$3^2)) -> 0.8843806995
B143: Pyrene | C143: 5.25 | D143: 4.28525 | E143: 0.5243545006 | F143: =1-EXP(E143*'PRC Model'!$H$4/(10^'PRC Correction_PDMS_PAHs'!$D143)^2/'PRC Model'!$H$3^2)*ERFC(SQRT(E143*'PRC Model'!$H$4/(10^'PRC Correction_PDMS_PAHs'!$D143)^2/'PRC Model'!$H$3^2)) -> 0.8878770828
B144: Chrysene | C144: 5.9 | D144: 4.7565 | E144: 1.626859321 | F144: =1-EXP(E144*'PRC Model'!$H$4/(10^'PRC Correction_PDMS_PAHs'!$D144)^2/'PRC Model'!$H$3^2)*ERFC(SQRT(E144*'PRC Model'!$H$4/(10^'PRC Correction_PDMS_PAHs'!$D144)^2/'PRC Model'!$H$3^2)) -> 0.8174855114
B145: Benz[a]anthracene | C145: 5.85 | D145: 4.72025 | E145: 1.491162591 | F145: =1-EXP(E145*'PRC Model'!$H$4/(10^'PRC Correction_PDMS_PAHs'!$D145)^2/'PRC Model'!$H$3^2)*ERFC(SQRT(E145*'PRC Model'!$H$4/(10^'PRC Correction_PDMS_PAHs'!$D145)^2/'PRC Model'!$H$3^2)) -> 0.8240042839
B146: Benzo[b]fluoranthene | C146: 6.58 | D146: 5.2495 | E146: 5.318265322 | F146: =1-EXP(E146*'PRC Model'!$H$4/(10^'PRC Correction_PDMS_PAHs'!$D146)^2/'PRC Model'!$H$3^2)*ERFC(SQRT(E146*'PRC Model'!$H$4/(10^'PRC Correction_PDMS_PAHs'!$D146)^2/'PRC Model'!$H$3^2)) -> 0.7091938237
B147: Benzo[k]fluoranthene | C147: 6.5 | D147: 5.1915 | E147: 4.626472659 | F147: =1-EXP(E147*'PRC Model'!$H$4/(10^'PRC Correction_PDMS_PAHs'!$D147)^2/'PRC Model'!$H$3^2)*ERFC(SQRT(E147*'PRC Model'!$H$4/(10^'PRC Correction_PDMS_PAHs'!$D147)^2/'PRC Model'!$H$3^2)) -> 0.7237856202
B148: Benzo[a]pyrene | C148: 6.54 | D148: 5.2205 | E148: 4.960323488 | F148: =1-EXP(E148*'PRC Model'!$H$4/(10^'PRC Correction_PDMS_PAHs'!$D148)^2/'PRC Model'!$H$3^2)*ERFC(SQRT(E148*'PRC Model'!$H$4/(10^'PRC Correction_PDMS_PAHs'!$D148)^2/'PRC Model'!$H$3^2)) -> 0.7165472717
B149: Dibenz[a,h]anthracene | C149: 7.39 | D149: 5.83675 | E149: 21.80394109 | F149: =1-EXP(E149*'PRC Model'!$H$4/(10^'PRC Correction_PDMS_PAHs'!$D149)^2/'PRC Model'!$H$3^2)*ERFC(SQRT(E149*'PRC Model'!$H$4/(10^'PRC Correction_PDMS_PAHs'!$D149)^2/'PRC Model'!$H$3^2)) -> 0.5415247246
B150: Benzo[ghi]perylene+Indeno[1,2,3-cd]pyrene | C150: 7.04 | D150: 5.583 | E150: 11.85113649 | F150: =1-EXP(E150*'PRC Model'!$H$4/(10^'PRC Correction_PDMS_PAHs'!$D150)^2/'PRC Model'!$H$3^2)*ERFC(SQRT(E150*'PRC Model'!$H$4/(10^'PRC Correction_PDMS_PAHs'!$D150)^2/'PRC Model'!$H$3^2)) -> 0.6174240227

Sheet PRC Correction_PDMS_PCBs
B2: Note: This Excel file can be used to calculate the PRC correction for PDMS.
B3: Please input parameters in all the highlighted cells
B4: In this file, PCBs are the target compounds and 4 PCB C13 are the PRCs as an example.
B7: 1. Select PRCs | F7: PRC parameters
F8: PRC | G8: logKow (SPARC Estimates) | H8: logKf (Ghosh et al., 2014)
B9: PRCs | C9: logKow | D9: logKf | F9: d10-fluoranthene | G9: 5.29 | H9: =0.947*G9-0.017 -> 4.99263
B10: PCB C13 28* | C10: =Findvalue(B10) -> 5.67 | D10: =0.947*C10-0.017 -> 5.35249 | F10: d12-chrysene | G10: 5.9 | H10: =0.947*G10-0.017 -> 5.5703
B11: PCB C13 52* | C11: 5.84 | D11: =0.947*C11-0.017 -> 5.51348 | F11: d12-benzo[b]fluoranthene | G11: 6.58 | H11: 6.21426
B12: PCB C13 101* | C12: 6.38 | D12: 6.02486 | F12: d14-dibenz[a]anthracene | G12: 7.39 | H12: 6.98133
B13: PCB C13 138* | C13: 6.83 | D13: 6.45101 | F13: PCB C13 28* | G13: 5.67 | H13: 5.35249
B14: PCB C13 153* | C14: 6.92 | D14: 6.53624 | F14: PCB C13 52* | G14: 5.84 | H14: 5.51348
B15: PCB C13 180* | C15: 7.36 | D15: 6.95292 | F15: PCB C13 101* | G15: 6.38 | H15: 6.02486
F16: PCB C13 138* | G16: 6.83 | H16: 6.45101
F17: PCB C13 153* | G17: 6.92 | H17: 6.53624
F18: PCB C13 180* | G18: 7.36 | H18: 6.95292
F19: PCB C13 209* | G19: 8.18 | H19: 7.72946
G20: * Kow values from Hawker and Connell, 1988
B22: 2. Input parameters | C22: Enter fiber dimensions, time of deployment on PAH sheet | E22: In addition, enter segment length and solvent volume for analysis and the measured concentrations in extract for PRCs both initially and after deployemnt
B24: PDMS fibers parameters
B25: Outer diameter of the SPME fiber (um) | D25: ='PRC Correction_PDMS_PAHs'!D25 -> 558.8
B26: Outer diameter of the SPME fiber (um) | D26: ='PRC Correction_PDMS_PAHs'!D26 -> 486
B27: Time of deployment (days) | D27: ='PRC Correction_PDMS_PAHs'!D27 -> 20
B29: PRC C0 Samples parameters
F30: =B10 -> PCB C13 28* | G30: =B11 -> PCB C13 52* | H30: =B12 -> PCB C13 101* | I30: =B13 -> PCB C13 138* | J30: =B14 -> PCB C13 153* | K30: =B15 -> PCB C13 180*
C31: PDMS Segment Length (cm) | D31: Solvent Volume (L) | E31: Dilution Factor | F31: Extracted Concentrations
B32: PRC Co Sample 1 | C32: 5 | D32: =0.0001 -> 0.0001 | E32: =D32/(PI()*(($D$25/10^6)^2-($D$26/10^6)^2)/4*C32/100*1000) -> 33.47923849 | F32: 51.45524323 | G32: 49.36401359 | H32: 53.55067101 | I32: 49.30948522 | J32: 49.24610943 | K32: 48.23586429
B33: PRC Co Sample 2 | C33: 5 | D33: 0.0001 | E33: =D33/(PI()*(($D$25/10^6)^2-($D$26/10^6)^2)/4*C33/100*1000) -> 33.47923849 | F33: 50 | G33: 50 | H33: 50 | I33: 50 | J33: 50 | K33: 50
B34: PRC Co Sample 3 | C34: 5 | D34: 0.0001 | E34: 33.47923849 | F34: 50 | G34: 50 | H34: 50 | I34: 50 | J34: 50 | K34: 50
B36: Samples parameters
F37: =B10 -> PCB C13 28* | G37: =B11 -> PCB C13 52* | H37: =B12 -> PCB C13 101* | I37: =B13 -> PCB C13 138* | J37: =B14 -> PCB C13 153* | K37: =B15 -> PCB C13 180*
C38: PDMS Segment Length (cm) | D38: Solvent Volume (L) | E38: Dilution Factor | F38: Extracted Concentrations
B39: Sample 1 | C39: 5 | D39: =0.0001 -> 0.0001 | E39: =D39/(PI()*(($D$25/10^6)^2-($D$26/10^6)^2)/4*C39/100*1000) -> 33.47923849 | F39: 18.28207426 | G39: 24.05983616 | H39: 31.35909919 | I39: 32.62921455 | J39: 30.78687073 | K39: 37.15229642
B40: Sample 2 | C40: 5 | D40: 0.0001 | E40: =D40/(PI()*(($D$25/10^6)^2-($D$26/10^6)^2)/4*C40/100*1000) -> 33.47923849 | F40: 18 | G40: 25 | H40: 32 | I40: 33 | J40: 33 | K40: 35
B41: Sample 3 | C41: 5 | D41: 0.0001 | E41: 33.47923849 | F41: 18 | G41: 24 | H41: 33 | I41: 33 | J41: 32 | K41: 36
B42: Sample 4
B43: Sample 5
B51: 3. Calculations
B53: Initial PRC concentrations
C54: Concentrations (µg/L)
C55: =B10 -> PCB C13 28* | D55: =B11 -> PCB C13 52* | E55: =B12 -> PCB C13 101* | F55: =B13 -> PCB C13 138* | G55: =B14 -> PCB C13 153* | H55: =B15 -> PCB C13 180*
B56: PRC Co Sample 1 | C56: =F32*$E32/10^D$10 -> 0.00765094723 | D56: =G32*$E32/10^D$11 -> 0.005066476519 | E56: =H32*$E32/10^D$12 -> 0.001693091729 | F56: =I32*$E32/10^D$13 -> 0.000584380936 | G56: =J32*$E32/10^D$14 -> 0.000479631278 | H56: =K32*$E32/10^D$15 -> 0.0001799805753
B57: PRC Co Sample 2 | C57: =F33*$E33/10^D$10 -> 0.007434565215 | D57: =G33*$E33/10^D$11 -> 0.005131750997 | E57: =H33*$E33/10^D$12 -> 0.001580831479 | F57: =I33*$E33/10^D$13 -> 0.0005925644258 | G57: =J33*$E33/10^D$14 -> 0.0004869737768 | H57: =K33*$E33/10^D$15 -> 0.0001865630252
B58: PRC Co Sample 3 | C58: 0.007434565215 | D58: 0.005131750997 | E58: 0.001580831479 | F58: 0.0005925644258 | G58: 0.0004869737768 | H58: 0.0001865630252
B60: Avg PRC Co | C60: =AVERAGE(C56:C58) -> 0.007506692553 | D60: =AVERAGE(D56:D58) -> 0.005109992838 | E60: =AVERAGE(E56:E58) -> 0.001618251562 | F60: =AVERAGE(F56:F58) -> 0.0005898365959 | G60: =AVERAGE(G56:G58) -> 0.0004845262772 | H60: 0.0001843688752
B63: PRC concentrations in samples after equlibriation
C64: Concentrations (µg/L)
C65: =B10 -> PCB C13 28* | D65: =B11 -> PCB C13 52* | E65: =B12 -> PCB C13 101* | F65: =B13 -> PCB C13 138* | G65: =B14 -> PCB C13 153* | H65: =B15 -> PCB C13 180*
B66: Sample 1 | C66: =IF(F39="","",F39*$E39/10^D$10) -> 0.002718385468 | D66: =IF(G39="","",G39*$E39/10^D$11) -> 0.002469381764 | E66: =IF(H39="","",H39*$E39/10^D$12) -> 0.0009914690229 | F66: =IF(I39="","",I39*$E39/10^D$13) -> 0.0003866982357 | G66: =IF(J39="","",J39*$E39/10^D$14) -> 0.0002998479743 | H66: =IF(K39="","",K39*$E39/10^D$15) -> 0.0001386248962
B67: Sample 2 | C67: =IF(F40="","",F40*$E40/10^D$10) -> 0.002676443477 | D67: =IF(G40="","",G40*$E40/10^D$11) -> 0.002565875499 | E67: =IF(H40="","",H40*$E40/10^D$12) -> 0.001011732147 | F67: =IF(I40="","",I40*$E40/10^D$13) -> 0.0003910925211 | G67: =IF(J40="","",J40*$E40/10^D$14) -> 0.0003214026927 | H67: =IF(K40="","",K40*$E40/10^D$15) -> 0.0001305941176
B68: Sample 3 | C68: =IF(F41="","",F41*$E41/10^D$10) -> 0.002676443477 | D68: =IF(G41="","",G41*$E41/10^D$11) -> 0.002463240479 | E68: =IF(H41="","",H41*$E41/10^D$12) -> 0.001043348776 | F68: =IF(I41="","",I41*$E41/10^D$13) -> 0.0003910925211 | G68: 0.0003116632172 | H68: 0.0001343253781
B70: Avg Sample PRC Conc. | C70: =AVERAGE(C66:C68) -> 0.002690424141 | D70: =AVERAGE(D66:D68) -> 0.002499499247 | E70: =AVERAGE(E66:E68) -> 0.001015516648 | F70: =AVERAGE(F66:F68) -> 0.0003896277593 | G70: =AVERAGE(G66:G68) -> 0.0003109712947 | H70: 0.0001345147973
B73: C/Co caculation for PRCs
B74: C/Co | C74: =B10 -> PCB C13 28* | D74: =B11 -> PCB C13 52* | E74: =B12 -> PCB C13 101* | F74: =B13 -> PCB C13 138* | G74: =B14 -> PCB C13 153* | H74: =B15 -> PCB C13 180*
B75: Sample 1 | C75: =C66/C$60 -> 0.362128254 | D75: 0.4832456409 | E75: 0.6126791693 | F75: 0.6556023115 | G75: 0.6188477043 | H75: 0.7518888211
B76: Sample 2 | C76: 0.3565409744 | D76: 0.5021289814 | E76: 0.6252007847 | F76: 0.6630523161 | G76: 0.6633338744 | H76: 0.7083306088
B77: Sample 3 | C77: 0.3565409744 | D77: 0.4820438221 | E77: 0.6447383092 | F77: 0.6630523161 | G77: 0.6432328479 | H77: 0.7285686262
B79: Avg | C79: =AVERAGE(C75:C77) -> 0.3584034009 | D79: =AVERAGE(D75:D77) -> 0.4891394815 | E79: =AVERAGE(E75:E77) -> 0.627539421 | F79: =AVERAGE(F75:F77) -> 0.6605689813 | G79: =AVERAGE(G75:G77) -> 0.6418048088 | H79: 0.7295960187
B82: fss caculation for PRCs | C82: fss=1-C/Co
B83: fss | C83: =B10 -> PCB C13 28* | D83: =B11 -> PCB C13 52* | E83: =B12 -> PCB C13 101* | F83: =B13 -> PCB C13 138* | G83: =B14 -> PCB C13 153* | H83: =B15 -> PCB C13 180*
B84: Sample 1 | C84: =1-C75 -> 0.637871746 | D84: =1-D75 -> 0.5167543591 | E84: 0.3873208307 | F84: 0.3443976885 | G84: 0.3811522957 | H84: 0.2481111789
B85: Sample 2 | C85: =1-C76 -> 0.6434590256 | D85: 0.4978710186 | E85: 0.3747992153 | F85: 0.3369476839 | G85: 0.3366661256 | H85: =1-H76 -> 0.2916693912
B86: Sample 3 | C86: 0.6434590256 | D86: 0.5179561779 | E86: 0.3552616908 | F86: 0.3369476839 | G86: 0.3567671521 | H86: =1-H77 -> 0.2714313738
B88: Avg | C88: =AVERAGE(C84:C86) -> 0.6415965991 | D88: =AVERAGE(D84:D86) -> 0.5108605185 | E88: =AVERAGE(E84:E86) -> 0.372460579 | F88: =AVERAGE(F84:F86) -> 0.3394310187 | G88: =AVERAGE(G84:G86) -> 0.3581951912 | H88: =AVERAGE(H84:H86) -> 0.2704039813
B91: RD caculation for PRCs
B92: logkow | C92: =C10 -> 5.67 | D92: =C11 -> 5.84 | E92: =C12 -> 6.38 | F92: =C13 -> 6.83 | G92: =C14 -> 6.92 | H92: =C15 -> 7.36
B93: RD (m2/d) | C93: =B10 -> PCB C13 28* | D93: =B11 -> PCB C13 52* | E93: =B12 -> PCB C13 101* | F93: =B13 -> PCB C13 138* | G93: =B14 -> PCB C13 153* | H93: =B15 -> PCB C13 180*
B94: Sample 1 | C94: =VLOOKUP(C75,'PRC Model'!$D$4:$E$687,2,TRUE)*'PRC Model'!$H$3^2/'PRC Model'!$H$4*(10^D$10)^2 -> 4.813823485 | D94: =VLOOKUP(D75,'PRC Model'!$D$4:$E$687,2,TRUE)*'PRC Model'!$H$3^2/'PRC Model'!$H$4*(10^D$11)^2 -> 4.127633381 | E94: =VLOOKUP(E75,'PRC Model'!$D$4:$E$687,2,TRUE)*'PRC Model'!$H$3^2/'PRC Model'!$H$4*(10^D$12)^2 -> 16.61981857 | F94: =VLOOKUP(F75,'PRC Model'!$D$4:$E$687,2,TRUE)*'PRC Model'!$H$3^2/'PRC Model'!$H$4*(10^D$13)^2 -> 84.09258469 | G94: =VLOOKUP(G75,'PRC Model'!$D$4:$E$687,2,TRUE)*'PRC Model'!$H$3^2/'PRC Model'!$H$4*(10^D$14)^2 -> 166.9306712 | H94: =VLOOKUP(H75,'PRC Model'!$D$4:$E$687,2,TRUE)*'PRC Model'!$H$3^2/'PRC Model'!$H$4*(10^D$15)^2 -> 354.2581951
B95: Sample 2 | C95: =VLOOKUP(C76,'PRC Model'!$D$4:$E$687,2,TRUE)*'PRC Model'!$H$3^2/'PRC Model'!$H$4*(10^D$10)^2 -> 5.048644142 | D95: =VLOOKUP(D76,'PRC Model'!$D$4:$E$687,2,TRUE)*'PRC Model'!$H$3^2/'PRC Model'!$H$4*(10^D$11)^2 -> 3.6039784 | E95: =VLOOKUP(E76,'PRC Model'!$D$4:$E$687,2,TRUE)*'PRC Model'!$H$3^2/'PRC Model'!$H$4*(10^D$12)^2 -> 15.19155291 | F95: =VLOOKUP(F76,'PRC Model'!$D$4:$E$687,2,TRUE)*'PRC Model'!$H$3^2/'PRC Model'!$H$4*(10^D$13)^2 -> 79.472113 | G95: =VLOOKUP(G76,'PRC Model'!$D$4:$E$687,2,TRUE)*'PRC Model'!$H$3^2/'PRC Model'!$H$4*(10^D$14)^2 -> 117.6724404 | H95: =VLOOKUP(H76,'PRC Model'!$D$4:$E$687,2,TRUE)*'PRC Model'!$H$3^2/'PRC Model'!$H$4*(10^D$15)^2 -> 540.7098767
B96: Sample 3 | C96: =VLOOKUP(C77,'PRC Model'!$D$4:$E$687,2,TRUE)*'PRC Model'!$H$3^2/'PRC Model'!$H$4*(10^D$10)^2 -> 5.048644142 | D96: =VLOOKUP(D77,'PRC Model'!$D$4:$E$687,2,TRUE)*'PRC Model'!$H$3^2/'PRC Model'!$H$4*(10^D$11)^2 -> 4.158436615 | E96: =VLOOKUP(E77,'PRC Model'!$D$4:$E$687,2,TRUE)*'PRC Model'!$H$3^2/'PRC Model'!$H$4*(10^D$12)^2 -> 12.98423326 | F96: =VLOOKUP(F77,'PRC Model'!$D$4:$E$687,2,TRUE)*'PRC Model'!$H$3^2/'PRC Model'!$H$4*(10^D$13)^2 -> 79.472113 | G96: =VLOOKUP(G77,'PRC Model'!$D$4:$E$687,2,TRUE)*'PRC Model'!$H$3^2/'PRC Model'!$H$4*(10^D$14)^2 -> 138.1967032 | H96: =VLOOKUP(H77,'PRC Model'!$D$4:$E$687,2,TRUE)*'PRC Model'!$H$3^2/'PRC Model'!$H$4*(10^D$15)^2 -> 447.4840359
B98: Avg | C98: =AVERAGE(C94:C96) -> 4.97037059 | D98: =AVERAGE(D94:D96) -> 3.963349465 | E98: =AVERAGE(E94:E96) -> 14.93186825 | F98: =AVERAGE(F94:F96) -> 81.01227023 | G98: =AVERAGE(G94:G96) -> 140.9332716 | H98: 447.4840359
B101: LogRD caculation for PRCs
B103: logRD (m2/d) | C103: =B10 -> PCB C13 28* | D103: =B11 -> PCB C13 52* | E103: =B12 -> PCB C13 101* | F103: =B13 -> PCB C13 138* | G103: =B14 -> PCB C13 153* | H103: =B15 -> PCB C13 180*
B104: Sample 1 | C104: =LOG(C94) -> 0.6824901613 | D104: =LOG(D94) -> 0.615701116 | E104: 1.220626279 | F104: 1.924757701 | G104: 2.22253614 | H104: 2.549319906
B105: Sample 2 | C105: =LOG(C95) -> 0.7031747602 | D105: 0.5567821794 | E105: 1.181602171 | F105: 1.90021476 | G105: 2.07067476 | H105: 2.732964303
B106: Sample 3 | C106: =LOG(C96) -> 0.7031747602 | D106: 0.6189300861 | E106: 1.113416309 | F106: 1.90021476 | G106: 2.140497683 | H106: 2.650777546
B108: Avg | C108: =AVERAGE(C104:C106) -> 0.6962798939 | D108: =AVERAGE(D104:D106) -> 0.5971377938 | E108: =AVERAGE(E104:E106) -> 1.171881586 | F108: =AVERAGE(F104:F106) -> 1.908395741 | G108: =AVERAGE(G104:G106) -> 2.144569528 | H108: 2.644353918
B112: 4. Results
D113: Note: plot logKow vs. logRD for sample 1, get a trend line, of which the parameters are usd in calculating fss of target compounds
D114: Note: can calculated the fss for bothe averaged sample data and individual sample data. | G114: Delete outlier or unrepresentative data if needed
D132: alpha | E132: 1.2441 | F132: Enter slope and intercept of best fit line here
D133: beta | E133: -6.5596 | F133: Currently using average
B135: fss caculation for target compounds
E136: RD (m2/d) | F136: fss
B137: Target compounds | C137: logKow | D137: logKf | E137: Sample 1 | F137: Sample 1
B138: 7 | C138: 5.07 | D138: =0.947*C138-0.017 -> 4.78429 | E138: =10^E$133*(10^C138)^E$132 -> 0.5597408462 | F138: =1-EXP(E138*'PRC Model'!$H$4/(10^'PRC Correction_PDMS_PCBs'!$D138)^2/'PRC Model'!$H$3^2)*ERFC(SQRT(E138*'PRC Model'!$H$4/(10^'PRC Correction_PDMS_PCBs'!$D138)^2/'PRC Model'!$H$3^2)) -> 0.696380338
B139: 9 | C139: 5.06 | D139: =0.947*C139-0.017 -> 4.77482 | E139: 0.5439337415 | F139: =1-EXP(E139*'PRC Model'!$H$4/(10^'PRC Correction_PDMS_PCBs'!$D139)^2/'PRC Model'!$H$3^2)*ERFC(SQRT(E139*'PRC Model'!$H$4/(10^'PRC Correction_PDMS_PCBs'!$D139)^2/'PRC Model'!$H$3^2)) -> 0.6981574305
B140: 10 | C140: 4.84 | D140: 4.56648 | E140: 0.2896303039 | F140: =1-EXP(E140*'PRC Model'!$H$4/(10^'PRC Correction_PDMS_PCBs'!$D140)^2/'PRC Model'!$H$3^2)*ERFC(SQRT(E140*'PRC Model'!$H$4/(10^'PRC Correction_PDMS_PCBs'!$D140)^2/'PRC Model'!$H$3^2)) -> 0.7356881282
B141: 17 | C141: 5.25 | D141: 4.95475 | E141: 0.9374001097 | F141: =1-EXP(E141*'PRC Model'!$H$4/(10^'PRC Correction_PDMS_PCBs'!$D141)^2/'PRC Model'!$H$3^2)*ERFC(SQRT(E141*'PRC Model'!$H$4/(10^'PRC Correction_PDMS_PCBs'!$D141)^2/'PRC Model'!$H$3^2)) -> 0.663428594
B142: 27 | C142: 5.44 | D142: 5.13468 | E142: 1.615488981 | F142: =1-EXP(E142*'PRC Model'!$H$4/(10^'PRC Correction_PDMS_PCBs'!$D142)^2/'PRC Model'!$H$3^2)*ERFC(SQRT(E142*'PRC Model'!$H$4/(10^'PRC Correction_PDMS_PCBs'!$D142)^2/'PRC Model'!$H$3^2)) -> 0.6268906608
B143: 32 | C143: 5.44 | D143: 5.13468 | E143: 1.615488981 | F143: =1-EXP(E143*'PRC Model'!$H$4/(10^'PRC Correction_PDMS_PCBs'!$D143)^2/'PRC Model'!$H$3^2)*ERFC(SQRT(E143*'PRC Model'!$H$4/(10^'PRC Correction_PDMS_PCBs'!$D143)^2/'PRC Model'!$H$3^2)) -> 0.6268906608
B144: 24 | C144: 5.35 | D144: 5.04945 | E144: 1.248346075 | F144: =1-EXP(E144*'PRC Model'!$H$4/(10^'PRC Correction_PDMS_PCBs'!$D144)^2/'PRC Model'!$H$3^2)*ERFC(SQRT(E144*'PRC Model'!$H$4/(10^'PRC Correction_PDMS_PCBs'!$D144)^2/'PRC Model'!$H$3^2)) -> 0.6443995141
B145: 47 | C145: 5.85 | D145: 5.52295 | E145: 5.228594961 | F145: =1-EXP(E145*'PRC Model'!$H$4/(10^'PRC Correction_PDMS_PCBs'!$D145)^2/'PRC Model'!$H$3^2)*ERFC(SQRT(E145*'PRC Model'!$H$4/(10^'PRC Correction_PDMS_PCBs'!$D145)^2/'PRC Model'!$H$3^2)) -> 0.5438920495
B146: 48 | C146: 5.78 | D146: 5.45666 | E146: 4.278563678 | F146: =1-EXP(E146*'PRC Model'!$H$4/(10^'PRC Correction_PDMS_PCBs'!$D146)^2/'PRC Model'!$H$3^2)*ERFC(SQRT(E146*'PRC Model'!$H$4/(10^'PRC Correction_PDMS_PCBs'!$D146)^2/'PRC Model'!$H$3^2)) -> 0.558316874
B147: 66 | C147: 6.2 | D147: 5.8544 | E147: 14.25016851 | F147: =1-EXP(E147*'PRC Model'!$H$4/(10^'PRC Correction_PDMS_PCBs'!$D147)^2/'PRC Model'!$H$3^2)*ERFC(SQRT(E147*'PRC Model'!$H$4/(10^'PRC Correction_PDMS_PCBs'!$D147)^2/'PRC Model'!$H$3^2)) -> 0.471592813
B148: 70 | C148: 6.2 | D148: 5.8544 | E148: 14.25016851 | F148: =1-EXP(E148*'PRC Model'!$H$4/(10^'PRC Correction_PDMS_PCBs'!$D148)^2/'PRC Model'!$H$3^2)*ERFC(SQRT(E148*'PRC Model'!$H$4/(10^'PRC Correction_PDMS_PCBs'!$D148)^2/'PRC Model'!$H$3^2)) -> 0.471592813
B149: 71 | C149: 5.98 | D149: 5.64606 | E149: 7.587837124 | F149: =1-EXP(E149*'PRC Model'!$H$4/(10^'PRC Correction_PDMS_PCBs'!$D149)^2/'PRC Model'!$H$3^2)*ERFC(SQRT(E149*'PRC Model'!$H$4/(10^'PRC Correction_PDMS_PCBs'!$D149)^2/'PRC Model'!$H$3^2)) -> 0.5170002576
B150: 93 | C150: 6.04 | D150: 5.70288 | E150: 9.010813479 | F150: =1-EXP(E150*'PRC Model'!$H$4/(10^'PRC Correction_PDMS_PCBs'!$D150)^2/'PRC Model'!$H$3^2)*ERFC(SQRT(E150*'PRC Model'!$H$4/(10^'PRC Correction_PDMS_PCBs'!$D150)^2/'PRC Model'!$H$3^2)) -> 0.5045810244
B151: 95 | C151: 6.13 | D151: 5.78811 | E151: 11.66092494 | F151: =1-EXP(E151*'PRC Model'!$H$4/(10^'PRC Correction_PDMS_PCBs'!$D151)^2/'PRC Model'!$H$3^2)*ERFC(SQRT(E151*'PRC Model'!$H$4/(10^'PRC Correction_PDMS_PCBs'!$D151)^2/'PRC Model'!$H$3^2)) -> 0.4859903783
B152: 119 | C152: 6.58 | D152: 6.21426 | E152: 42.3231516 | F152: =1-EXP(E152*'PRC Model'!$H$4/(10^'PRC Correction_PDMS_PCBs'!$D152)^2/'PRC Model'!$H$3^2)*ERFC(SQRT(E152*'PRC Model'!$H$4/(10^'PRC Correction_PDMS_PCBs'!$D152)^2/'PRC Model'!$H$3^2)) -> 0.3954323653
B153: 128 | C153: 6.74 | D153: 6.36578 | E153: 66.93203046 | F153: =1-EXP(E153*'PRC Model'!$H$4/(10^'PRC Correction_PDMS_PCBs'!$D153)^2/'PRC Model'!$H$3^2)*ERFC(SQRT(E153*'PRC Model'!$H$4/(10^'PRC Correction_PDMS_PCBs'!$D153)^2/'PRC Model'!$H$3^2)) -> 0.3649074991
B154: 135 | C154: 6.64 | D154: 6.27108 | E154: 50.26017541 | F154: =1-EXP(E154*'PRC Model'!$H$4/(10^'PRC Correction_PDMS_PCBs'!$D154)^2/'PRC Model'!$H$3^2)*ERFC(SQRT(E154*'PRC Model'!$H$4/(10^'PRC Correction_PDMS_PCBs'!$D154)^2/'PRC Model'!$H$3^2)) -> 0.3838545953
B155: 141 | C155: 6.82 | D155: 6.44154 | E155: 84.17090564 | F155: =1-EXP(E155*'PRC Model'!$H$4/(10^'PRC Correction_PDMS_PCBs'!$D155)^2/'PRC Model'!$H$3^2)*ERFC(SQRT(E155*'PRC Model'!$H$4/(10^'PRC Correction_PDMS_PCBs'!$D155)^2/'PRC Model'!$H$3^2)) -> 0.3500901385
B156: 146 | C156: 6.89 | D156: 6.50783 | E156: 102.8605874 | F156: =1-EXP(E156*'PRC Model'!$H$4/(10^'PRC Correction_PDMS_PCBs'!$D156)^2/'PRC Model'!$H$3^2)*ERFC(SQRT(E156*'PRC Model'!$H$4/(10^'PRC Correction_PDMS_PCBs'!$D156)^2/'PRC Model'!$H$3^2)) -> 0.337390825
B157: 149 | C157: 6.67 | D157: 6.29949 | E157: 54.77053713 | F157: =1-EXP(E157*'PRC Model'!$H$4/(10^'PRC Correction_PDMS_PCBs'!$D157)^2/'PRC Model'!$H$3^2)*ERFC(SQRT(E157*'PRC Model'!$H$4/(10^'PRC Correction_PDMS_PCBs'!$D157)^2/'PRC Model'!$H$3^2)) -> 0.3781231402
B158: 151 | C158: 6.64 | D158: 6.27108 | E158: 50.26017541 | F158: =1-EXP(E158*'PRC Model'!$H$4/(10^'PRC Correction_PDMS_PCBs'!$D158)^2/'PRC Model'!$H$3^2)*ERFC(SQRT(E158*'PRC Model'!$H$4/(10^'PRC Correction_PDMS_PCBs'!$D158)^2/'PRC Model'!$H$3^2)) -> 0.3838545953
B159: 163 | C159: 6.99 | D159: 6.60253 | E159: 136.9805798 | F159: =1-EXP(E159*'PRC Model'!$H$4/(10^'PRC Correction_PDMS_PCBs'!$D159)^2/'PRC Model'!$H$3^2)*ERFC(SQRT(E159*'PRC Model'!$H$4/(10^'PRC Correction_PDMS_PCBs'!$D159)^2/'PRC Model'!$H$3^2)) -> 0.31970434
B160: 167 | C160: 7.27 | D160: 6.86769 | E160: 305.4970353 | F160: =1-EXP(E160*'PRC Model'!$H$4/(10^'PRC Correction_PDMS_PCBs'!$D160)^2/'PRC Model'!$H$3^2)*ERFC(SQRT(E160*'PRC Model'!$H$4/(10^'PRC Correction_PDMS_PCBs'!$D160)^2/'PRC Model'!$H$3^2)) -> 0.2732497564
B161: 175 | C161: 7.17 | D161: 6.77299 | E161: 229.4018944 | F161: =1-EXP(E161*'PRC Model'!$H$4/(10^'PRC Correction_PDMS_PCBs'!$D161)^2/'PRC Model'!$H$3^2)*ERFC(SQRT(E161*'PRC Model'!$H$4/(10^'PRC Correction_PDMS_PCBs'!$D161)^2/'PRC Model'!$H$3^2)) -> 0.2893031492
B162: 178 | C162: 7.14 | D162: 6.74458 | E162: 210.510615 | F162: =1-EXP(E162*'PRC Model'!$H$4/(10^'PRC Correction_PDMS_PCBs'!$D162)^2/'PRC Model'!$H$3^2)*ERFC(SQRT(E162*'PRC Model'!$H$4/(10^'PRC Correction_PDMS_PCBs'!$D162)^2/'PRC Model'!$H$3^2)) -> 0.2942374408
B163: 190 | C163: 7.46 | D163: 7.04762 | E163: 526.4849972 | F163: =1-EXP(E163*'PRC Model'!$H$4/(10^'PRC Correction_PDMS_PCBs'!$D163)^2/'PRC Model'!$H$3^2)*ERFC(SQRT(E163*'PRC Model'!$H$4/(10^'PRC Correction_PDMS_PCBs'!$D163)^2/'PRC Model'!$H$3^2)) -> 0.2444553506
B164: 194 | C164: 7.8 | D164: 7.3696 | E164: 1394.376324 | F164: =1-EXP(E164*'PRC Model'!$H$4/(10^'PRC Correction_PDMS_PCBs'!$D164)^2/'PRC Model'!$H$3^2)*ERFC(SQRT(E164*'PRC Model'!$H$4/(10^'PRC Correction_PDMS_PCBs'!$D164)^2/'PRC Model'!$H$3^2)) -> 0.1985955453

Sheet PRC Model
A3: x | B3: exp(x)*erfc(sqrt(x)) | D3: C(t)/C(0) | E3: x | G3: L = | H3: =K11 -> 3.402891911e-05 | I3: m
A4: 1e-06 | B4: =EXP(A4)*ERFC(SQRT(A4)) -> 0.9988726201 | D4: =VLOOKUP(E4,$A$4:$B$687,2,TRUE) -> 0.005641613769 | E4: 10000 | G4: t = | H4: ='PRC Correction_PDMS_PAHs'!D27 -> 20 | I4: days
A5: 2e-06 | B5: 0.9984062288 | D5: =VLOOKUP(E5,$A$4:$B$687,2,TRUE) -> 0.006307437115 | E5: 8000
A6: 4e-06 | B6: 0.9977472357 | D6: =VLOOKUP(E6,$A$4:$B$687,2,TRUE) -> 0.006742873714 | E6: 7000 | G6: PDMS fibers parameters
A7: 8e-06 | B7: 0.9968164448 | D7: =VLOOKUP(E7,$A$4:$B$687,2,TRUE) -> 0.007283049334 | E7: 6000 | G7: Outer diameter of the PDMS fiber (um) | K7: ='PRC Correction_PDMS_PAHs'!D25 -> 558.8
A8: 1e-05 | B8: 0.996441728 | D8: 0.007978047883 | E8: 5000 | G8: Outer diameter of the PDMS fiber (um) | K8: ='PRC Correction_PDMS_PAHs'!D26 -> 486
A9: 2e-05 | B9: =EXP(A9)*ERFC(SQRT(A9)) -> 0.9949736679 | D9: 0.008919505782 | E9: 4000 | G9: Area | K9: =K7/1000000*PI() -> 0.001755521975
A10: 3e-05 | B10: 0.9938494896 | D10: 0.01261251027 | E10: 2000 | G10: Volume | K10: =PI()*((K7/10^6)^2-(K8/10^6)^2)/4 -> 5.973851528e-08
A11: 4e-05 | B11: 0.992903314 | D11: 0.01783232945 | E11: 1000 | G11: L = volume/area (m) | K11: =K10/K9 -> 3.402891911e-05
A12: 5e-05 | B12: 0.9920708897 | D12: 0.0230137811 | E12: 600
A13: 6e-05 | B13: 0.9913192647 | D13: 0.02817430521 | E13: 400
A14: 7e-05 | B14: 0.9906288644 | D14: 0.03251939184 | E14: 300
A15: 8e-05 | B15: 0.9899869348 | D15: 0.03979498805 | E15: 200
A16: 9e-05 | B16: 0.989384617 | D16: 0.05613964974 | E16: 100
A17: 0.0001 | B17: 0.988815461 | D17: 0.05914403135 | E17: 90
A18: 0.00012 | B18: 0.9877582438 | D18: 0.06268892591 | E18: 80
A19: 0.00014 | B19: 0.9867876013 | D19: 0.0669586454 | E19: 70
A20: 0.00016 | B20: 0.9858854973 | D20: 0.07223950092 | E20: 60
A21: 0.00018 | B21: 0.9850394043 | D21: 0.07900614111 | E21: 50
A22: 0.0002 | B22: 0.9842402009 | D22: 0.08811816341 | E22: 40
A23: 0.00025 | B23: 0.9824058163 | D23: 0.1013690934 | E23: 30
A24: 0.0003 | B24: 0.9807520352 | D24: 0.1076372487 | E24: 26.5
A25: 0.00035 | B25: 0.9792350937 | D25: 0.1086311757 | E25: 26
A26: 0.0004 | B26: 0.9778264777 | D26: 0.1096531888 | E26: 25.5
A27: 0.00045 | B27: 0.9765063822 | D27: 0.1107046377 | E27: 25
A28: 0.0005 | B28: 0.9752603877 | D28: 0.1117869649 | E28: 24.5
A29: 0.00055 | B29: 0.974077609 | D29: 0.1129017138 | E29: 24
A30: 0.0006 | B30: 0.9729495896 | D30: 0.1140505383 | E30: 23.5
A31: 0.00065 | B31: 0.9718696049 | D31: 0.1152352129 | E31: 23
A32: 0.0007 | B32: 0.9708322026 | D32: 0.1164576447 | E32: 22.5
A33: 0.00075 | B33: 0.9698328896 | D33: 0.1177198857 | E33: 22
A34: 0.0008 | B34: 0.9688679107 | D34: 0.1190241479 | E34: 21.5
A35: 0.00085 | B35: 0.9679340898 | D35: 0.1203728198 | E35: 21
A36: 0.0009 | B36: 0.967028712 | D36: 0.1217684843 | E36: 20.5
A37: 0.00095 | B37: 0.9661494346 | D37: 0.1232139401 | E37: 20
A38: 0.001 | B38: 0.96529422 | D38: 0.1241063666 | E38: 19.7
A39: 0.00105 | B39: 0.9644612822 | D39: 0.1250185079 | E39: 19.4
A40: 0.0011 | B40: 0.9636490456 | D40: 0.1259511022 | E40: 19.1
A41: 0.00115 | B41: 0.9628561121 | D41: 0.1269049268 | E41: 18.8
A42: 0.0012 | B42: 0.9620812338 | D42: 0.1278808013 | E42: 18.5
A43: 0.00125 | B43: 0.9613232917 | D43: 0.1288795903 | E43: 18.2
A44: 0.0013 | B44: 0.9605812779 | D44: 0.1299022067 | E44: 17.9
A45: 0.00135 | B45: 0.9598542802 | D45: 0.1309496153 | E45: 17.6
A46: 0.0014 | B46: 0.9591414705 | D46: =VLOOKUP(E46,$A$4:$B$687,2,TRUE) -> 0.1320228366 | E46: 17.3
A47: 0.00145 | B47: 0.9584420939 | D47: 0.1331229508 | E47: 17
A48: 0.0015 | B48: 0.9577554602 | D48: 0.1342511029 | E48: 16.7
A49: 0.0016 | B49: 0.956417939 | D49: 0.1354085074 | E49: 16.4
A50: 0.0017 | B50: 0.9551244175 | D50: 0.1365964539 | E50: 16.1
A51: 0.0018 | B51: 0.9538710583 | D51: 0.1378163131 | E51: 15.8
A52: 0.0019 | B52: 0.9526545503 | D52: 0.1390695438 | E52: 15.5
A53: 0.002 | B53: 0.9514720135 | D53: 0.1403577 | E53: 15.2
A54: 0.0021 | B54: 0.9503209239 | D54: 0.1416824393 | E54: 14.9
A55: 0.0022 | B55: 0.9491990548 | D55: 0.1430455318 | E55: 14.6
A56: 0.0023 | B56: 0.9481044303 | D56: 0.1444488701 | E56: 14.3
A60: 0.0027 | B60: =EXP(A60)*ERFC(SQRT(A60)) -> 0.9439656946 | D60: =VLOOKUP(E60,$A$4:$B$687,2,TRUE) -> 0.1489213707 | E60: 13.4
A61: 0.0028 | B61: 0.9429841302 | D61: 0.1499731454 | E61: 13.2
A62: 0.0029 | B62: 0.9420215157 | D62: 0.1510476113 | E62: 13
A63: 0.003 | B63: 0.941076876 | D63: 0.1521455993 | E63: 12.8
A64: 0.0032 | B64: 0.9392380138 | D64: 0.1532679835 | E64: 12.6
A65: 0.0034 | B65: 0.9374612012 | D65: 0.1544156844 | E65: 12.4
A66: 0.0036 | B66: 0.9357410169 | D66: 0.1555896719 | E66: 12.2
A67: 0.0038 | B67: 0.9340727841 | D67: 0.156790969 | E67: 12
A68: 0.004 | B68: 0.9324524346 | D68: 0.1580206557 | E68: 11.8
A69: 0.0042 | B69: 0.9308764035 | D69: 0.1592798727 | E69: 11.6
A70: 0.0044 | B70: 0.9293415462 | D70: 0.1605698263 | E70: 11.4
A71: 0.0046 | B71: 0.927845072 | D71: 0.1618917933 | E71: 11.2
A72: 0.0048 | B72: 0.9263844911 | D72: 0.1632471262 | E72: 11
A73: 0.005 | B73: 0.9249575706 | D73: 0.1642863817 | E73: 10.85
A74: 0.0052 | B74: 0.9235622992 | D74: 0.1653458478 | E74: 10.7
A75: 0.0054 | B75: 0.9221968577 | D75: 0.1664261913 | E75: 10.55
A76: 0.0056 | B76: 0.9208595938 | D76: 0.1675281104 | E76: 10.4
A77: 0.0058 | B77: 0.919549002 | D77: 0.1686523367 | E77: 10.25
A78: 0.006 | B78: 0.9182637056 | D78: 0.1697996369 | E78: 10.1
A79: 0.0062 | B79: 0.9170024418 | D79: 0.1709708157 | E79: 9.95
A80: 0.0064 | B80: 0.9157640492 | D80: 0.1721667173 | E80: 9.8
A81: 0.0066 | B81: 0.9145474565 | D81: 0.173388229 | E81: 9.65
A82: 0.0068 | B82: 0.9133516731 | D82: 0.1746362833 | E82: 9.5
A83: 0.007 | B83: 0.9121757809 | D83: 0.1759118611 | E83: 9.35
A84: 0.0072 | B84: 0.9110189272 | D84: 0.1772159953 | E84: 9.2
A85: 0.0074 | B85: 0.9098803179 | D85: 0.178549774 | E85: 9.05
A86: 0.0076 | B86: 0.9087592126 | D86: 0.1799143448 | E86: 8.9
A87: 0.0078 | B87: 0.9076549192 | D87: 0.1813109187 | E87: 8.75
A88: 0.008 | B88: 0.9065667899 | D88: 0.1827407747 | E88: 8.6
A89: 0.0083 | B89: 0.904963585 | D89: 0.1842052651 | E89: 8.45
A90: 0.0086 | B90: 0.9033934932 | D90: 0.185705821 | E90: 8.3
A91: 0.0089 | B91: 0.901854781 | D91: 0.1872439578 | E91: 8.15
A92: 0.0092 | B92: 0.9003458605 | D92: 0.1888212826 | E92: 8
A93: 0.0096 | B93: 0.8983778034 | D93: 0.1898954414 | E93: 7.9
A94: 0.01 | B94: 0.89645698 | D94: 0.1909883041 | E94: 7.8
A95: 0.0104 | B95: 0.8945805549 | D95: 0.1921004241 | E95: 7.7
A96: 0.0108 | B96: 0.8927459638 | D96: 0.1932323781 | E96: 7.6
A97: 0.0112 | B97: 0.8909508784 | D97: 0.1943847676 | E97: 7.5
A98: 0.0116 | B98: 0.8891931768 | D98: 0.1955582198 | E98: 7.4
A99: 0.012 | B99: 0.8874709194 | D99: 0.1967533898 | E99: 7.3
A100: 0.0124 | B100: 0.8857823273 | D100: 0.1979709615 | E100: 7.2
A101: 0.0128 | B101: 0.8841257645 | D101: 0.1992116497 | E101: 7.1
A102: 0.0132 | B102: 0.882499722 | D102: 0.2004762018 | E102: 7
A103: 0.0136 | B103: 0.880902805 | D103: 0.2015055497 | E103: 6.92
A104: 0.014 | B104: 0.8793337207 | D104: 0.2025510873 | E104: 6.84
A105: 0.0144 | B105: 0.8777912683 | D105: 0.2036132474 | E105: 6.76
A106: 0.0148 | B106: 0.8762743303 | D106: 0.2046924793 | E106: 6.68
A107: 0.0152 | B107: 0.8747818643 | D107: 0.2057892498 | E107: 6.6
A108: 0.0156 | B108: 0.8733128965 | D108: 0.2069040437 | E108: 6.52
A109: 0.016 | B109: 0.8718665151 | D109: 0.2080373651 | E109: 6.44
A110: 0.0164 | B110: 0.8704418655 | D110: 0.209189738 | E110: 6.36
A111: 0.0168 | B111: 0.8690381449 | D111: 0.2103617079 | E111: 6.28
A112: 0.0172 | B112: 0.8676545982 | D112: 0.2115538424 | E112: 6.2
A113: 0.0176 | B113: 0.8662905142 | D113: 0.2127667325 | E113: 6.12
A114: 0.018 | B114: 0.8649452222 | D114: 0.2140009943 | E114: 6.04
A115: 0.0184 | B115: 0.8636180884 | D115: 0.2152572697 | E115: 5.96
A116: 0.0188 | B116: 0.8623085138 | D116: 0.2165362284 | E116: 5.88
A117: 0.0192 | B117: 0.8610159309 | D117: 0.2178385691 | E117: 5.8
A118: 0.0196 | B118: 0.8597398019 | D118: 0.2191650216 | E118: 5.72
A119: 0.02 | B119: 0.8584796165 | D119: 0.2205163479 | E119: 5.64
A120: 0.0205 | B120: 0.856926069 | D120: 0.2218933448 | E120: 5.56
A121: 0.021 | B121: 0.8553957823 | D121: 0.2232968455 | E121: 5.48
A122: 0.0215 | B122: 0.8538879146 | D122: 0.2247277221 | E122: 5.4
A123: 0.022 | B123: 0.8524016727 | D123: 0.2261868879 | E123: 5.32
A124: 0.0225 | B124: =EXP(A124)*ERFC(SQRT(A124)) -> 0.8509363087 | D124: =VLOOKUP(E124,$A$4:$B$687,2,TRUE) -> 0.2276752996 | E124: 5.24
A125: 0.023 | B125: 0.8494911162 | D125: 0.2291939607 | E125: 5.16
A126: 0.0235 | B126: 0.8480654273 | D126: 0.2307439238 | E126: 5.08
A127: 0.024 | B127: 0.8466586094 | D127: 0.2323262944 | E127: 5
A128: 0.0245 | B128: 0.8452700632 | D128: 0.2333322465 | E128: 4.95
A129: 0.025 | B129: 0.8438992197 | D129: 0.2343516057 | E129: 4.9
A130: 0.0255 | B130: 0.8425455386 | D130: 0.2353846766 | E130: 4.85
A131: 0.026 | B131: 0.841208506 | D131: 0.2364317739 | E131: 4.8
A132: 0.0265 | B132: 0.8398876328 | D132: 0.2374932228 | E132: 4.75
A133: 0.027 | B133: 0.8385824529 | D133: 0.2385693589 | E133: 4.7
A134: 0.0275 | B134: 0.8372925221 | D134: 0.2396605294 | E134: 4.65
A135: 0.028 | B135: 0.8360174161 | D135: 0.240767093 | E135: 4.6
A136: 0.0285 | B136: 0.8347567299 | D136: 0.2418894208 | E136: 4.55
A137: 0.029 | B137: 0.8335100759 | D137: 0.2430278967 | E137: 4.5
A138: 0.0295 | B138: 0.8322770838 | D138: 0.2441829179 | E138: 4.45
A139: 0.03 | B139: 0.8310573985 | D139: 0.2453548956 | E139: 4.4
A140: 0.0305 | B140: 0.8298506801 | D140: 0.2465442559 | E140: 4.35
A141: 0.031 | B141: 0.8286566026 | D141: 0.2477514398 | E141: 4.3
A142: 0.0315 | B142: 0.8274748531 | D142: 0.2489769048 | E142: 4.25
A143: 0.032 | B143: 0.8263051312 | D143: 0.2502211249 | E143: 4.2
A144: 0.0325 | B144: 0.8251471482 | D144: 0.251484592 | E144: 4.15
A145: 0.033 | B145: 0.8240006269 | D145: 0.2527678164 | E145: 4.1
A146: 0.0335 | B146: 0.8228653002 | D146: 0.2540713278 | E146: 4.05
A147: 0.034 | B147: 0.8217409112 | D147: 0.2553956763 | E147: 4
A148: 0.0345 | B148: 0.8206272125 | D148: 0.2564705412 | E148: 3.96
A149: 0.035 | B149: 0.8195239658 | D149: 0.2575594102 | E149: 3.92
A150: 0.0355 | B150: 0.8184309411 | D150: 0.258662596 | E150: 3.88
A151: 0.036 | B151: 0.8173479167 | D151: 0.259780421 | E151: 3.84
A152: 0.0365 | B152: 0.8162746787 | D152: 0.2609132184 | E152: 3.8
A153: 0.037 | B153: 0.8152110205 | D153: 0.262061332 | E153: 3.76
A154: 0.0375 | B154: 0.8141567424 | D154: 0.2632251171 | E154: 3.72
A155: 0.038 | B155: 0.8131116515 | D155: 0.2644049408 | E155: 3.68
A156: 0.0385 | B156: 0.8120755614 | D156: 0.2656011825 | E156: 3.64
A157: 0.039 | B157: 0.8110482916 | D157: 0.2668142346 | E157: 3.6
A158: 0.0395 | B158: 0.8100296674 | D158: 0.2680445029 | E158: 3.56
A159: 0.04 | B159: 0.8090195199 | D159: 0.2692924073 | E159: 3.52
A160: 0.041 | B160: 0.807024005 | D160: 0.2705583824 | E160: 3.48
A161: 0.042 | B161: 0.8050604966 | D161: 0.2718428783 | E161: 3.44
A162: 0.043 | B162: 0.8031278194 | D162: 0.2731463612 | E162: 3.4
A163: 0.044 | B163: 0.8012248666 | D163: 0.2744693143 | E163: 3.36
A164: 0.045 | B164: 0.7993505947 | D164: 0.2758122382 | E164: 3.32
A165: 0.046 | B165: 0.7975040182 | D165: 0.2771756524 | E165: 3.28
A166: 0.047 | B166: 0.7956842058 | D166: 0.2785600956 | E166: 3.24
A167: 0.048 | B167: 0.7938902757 | D167: 0.2799661273 | E167: 3.2
A168: 0.049 | B168: 0.7921213925 | D168: 0.2813943279 | E168: 3.16
A169: 0.05 | B169: 0.7903767637 | D169: 0.2828453009 | E169: 3.12
A170: 0.051 | B170: 0.7886556365 | D170: 0.2843196732 | E170: 3.08
A171: 0.052 | B171: 0.7869572954 | D171: 0.2858180967 | E171: 3.04
A172: 0.053 | B172: 0.7852810597 | D172: 0.2873412495 | E172: 3
A173: 0.054 | B173: 0.7836262807 | D173: 0.2888898374 | E173: 2.96
A174: 0.055 | B174: 0.7819923402 | D174: 0.2904645953 | E174: 2.92
A175: 0.056 | B175: 0.7803786483 | D175: 0.2920662887 | E175: 2.88
A176: 0.057 | B176: 0.7787846417 | D176: 0.2936957158 | E176: 2.84
A177: 0.0024 | B177: 0.9470352869 | D177: 0.1458944809 | E177: 14
A178: 0.0025 | B178: 0.9459900436 | D178: 0.1468827726 | E178: 13.8
A179: 0.0026 | B179: 0.9449672757 | D179: 0.1478914971 | E179: 13.6
A180: 0.061 | B180: 0.7725950421 | D180: 0.3005079611 | E180: 2.68
A181: 0.062 | B181: 0.7710918333 | D181: 0.3022892962 | E181: 2.64
A182: 0.063 | B182: 0.7696054042 | D182: 0.3041039453 | E182: 2.6
A183: 0.064 | B183: 0.7681353378 | D183: 0.3054874445 | E183: 2.57
A184: 0.065 | B184: 0.7666812337 | D184: 0.3068907676 | E184: 2.54
A185: 0.066 | B185: 0.7652427072 | D185: 0.3083144075 | E185: 2.51
A186: 0.067 | B186: 0.7638193882 | D186: 0.3097588749 | E186: 2.48
A187: 0.068 | B187: 0.7624109205 | D187: 0.3112246993 | E187: 2.45
A188: 0.069 | B188: =EXP(A188)*ERFC(SQRT(A188)) -> 0.7610169613 | D188: =VLOOKUP(E188,$A$4:$B$687,2,TRUE) -> 0.3127124295 | E188: 2.42
A189: 0.07 | B189: 0.7596371803 | D189: 0.3142226348 | E189: 2.39
A190: 0.071 | B190: 0.7582712591 | D190: 0.3157559062 | E190: 2.36
A191: 0.072 | B191: 0.7569188908 | D191: 0.317312857 | E191: 2.33
A192: 0.073 | B192: 0.755579779 | D192: 0.3188941244 | E192: 2.3
A193: 0.074 | B193: 0.754253638 | D193: 0.3205003702 | E193: 2.27
A194: 0.075 | B194: 0.7529401915 | D194: 0.3221322828 | E194: 2.24
A195: 0.076 | B195: 0.7516391728 | D195: 0.3237905779 | E195: 2.21
A196: 0.077 | B196: 0.7503503239 | D196: 0.3254760004 | E196: 2.18
A197: 0.078 | B197: 0.7490733955 | D197: 0.3271893258 | E197: 2.15
A198: 0.079 | B198: 0.7478081461 | D198: 0.3289313618 | E198: 2.12
A199: 0.08 | B199: 0.7465543422 | D199: 0.3307029504 | E199: 2.09
A200: 0.081 | B200: 0.7453117578 | D200: 0.3325049693 | E200: 2.06
A201: 0.082 | B201: 0.7440801736 | D201: 0.3343383346 | E201: 2.03
A202: 0.083 | B202: 0.7428593775 | D202: 0.3362040024 | E202: 2
A203: 0.084 | B203: 0.7416491636 | D203: 0.3374662182 | E203: 1.98
A204: 0.085 | B204: 0.7404493323 | D204: 0.3387435407 | E204: 1.96
A205: 0.086 | B205: 0.73925969 | D205: 0.340036286 | E205: 1.94
... 482 more rows

Sheet logKow for PAH
A1: PAH | B1: logKow (SPARC Estimates)
A2: Naphthalene | B2: 3.41 | E2: PAHs: logKf= 0.725logKow +0.479(Ghosh et al., 2014)
A3: Fluorene | B3: 4.2
A4: Acenaphthene | B4: 4.06
A5: Phenanthrene | B5: 4.74
A6: Anthracene | B6: 4.69
A7: Fluoranthene | B7: 5.29
A8: Pyrene | B8: 5.25
A9: Chrysene | B9: 5.9
A10: Benz[a]anthracene | B10: 5.85
A11: Benzo[b]fluoranthene | B11: 6.58
A12: Benzo[k]fluoranthene | B12: 6.5
A13: Benzo[a]pyrene | B13: 6.54
A14: Dibenz[a,h]anthracene | B14: 7.39
A15: Benzo[ghi]perylene+Indeno[1,2,3-cd]pyrene | B15: 7.04

Sheet logKow for PCB
A1: PCB congener (Hawker and Connell, 1988)
A2: no. | B2: log Kow | D2: no. | E2: log Kow | G2: no. | H2: log Kow | K2: PCBs: logKf= 0.947logKow -0.017(Ghosh et al., 2014)
A3: 0 | B3: 4.09 | D3: 75 | E3: 6.05 | G3: 150 | H3: 6.32
A4: 1 | B4: 4.46 | D4: 76 | E4: 6.13 | G4: 151 | H4: 6.64
A5: 2 | B5: 4.69 | D5: 77 | E5: 6.36 | G5: 152 | H5: 6.22
A6: 3 | B6: 4.69 | D6: 78 | E6: 6.35 | G6: 153 | H6: 6.92
A7: 4 | B7: 4.65 | D7: 79 | E7: 6.42 | G7: 154 | H7: 6.76
A8: 5 | B8: 4.97 | D8: 80 | E8: 6.48 | G8: 155 | H8: 6.41
A9: 6 | B9: 5.06 | D9: 81 | E9: 6.36 | G9: 156 | H9: 7.18
A10: 7 | B10: 5.07 | D10: 82 | E10: 6.2 | G10: 157 | H10: 7.18
A11: 8 | B11: 5.07 | D11: 83 | E11: 6.26 | G11: 158 | H11: 7.02
A12: 9 | B12: 5.06 | D12: 84 | E12: 6.04 | G12: 159 | H12: 7.24
A13: 10 | B13: 4.84 | D13: 85 | E13: 6.3 | G13: 160 | H13: 6.93
A14: 11 | B14: 5.28 | D14: 86 | E14: 6.23 | G14: 161 | H14: 7.08
A15: 12 | B15: 5.22 | D15: 87 | E15: 6.29 | G15: 162 | H15: 7.24
A16: 13 | B16: 5.29 | D16: 88 | E16: 6.07 | G16: 163 | H16: 6.99
A17: 14 | B17: 5.28 | D17: 89 | E17: 6.07 | G17: 164 | H17: 7.02
A18: 15 | B18: 5.3 | D18: 90 | E18: 6.36 | G18: 165 | H18: 7.05
A19: 16 | B19: 5.16 | D19: 91 | E19: 6.13 | G19: 166 | H19: 6.93
A20: 17 | B20: 5.25 | D20: 92 | E20: 6.35 | G20: 167 | H20: 7.27
A21: 18 | B21: 5.24 | D21: 93 | E21: 6.04 | G21: 168 | H21: 7.11
A22: 19 | B22: 5.02 | D22: 94 | E22: 6.13 | G22: 169 | H22: 7.42
A23: 20 | B23: 5.57 | D23: 95 | E23: 6.13 | G23: 170 | H23: 7.27
A24: 21 | B24: 5.51 | D24: 96 | E24: 5.71 | G24: 171 | H24: 7.11
A25: 22 | B25: 5.58 | D25: 97 | E25: 6.29 | G25: 172 | H25: 7.33
A26: 23 | B26: 5.57 | D26: 98 | E26: 6.13 | G26: 173 | H26: 7.02
A27: 24 | B27: 5.35 | D27: 99 | E27: 6.39 | G27: 174 | H27: 7.11
A28: 25 | B28: 5.67 | D28: 100 | E28: 6.23 | G28: 175 | H28: 7.17
A29: 26 | B29: 5.66 | D29: 101 | E29: 6.38 | G29: 176 | H29: 6.76
A30: 27 | B30: 5.44 | D30: 102 | E30: 6.16 | G30: 177 | H30: 7.08
A31: 28 | B31: 5.67 | D31: 103 | E31: 6.22 | G31: 178 | H31: 7.14
A32: 29 | B32: 5.6 | D32: 104 | E32: 5.81 | G32: 179 | H32: 6.73
A33: 30 | B33: 5.44 | D33: 105 | E33: 6.65 | G33: 180 | H33: 7.36
A34: 31 | B34: 5.67 | D34: 106 | E34: 6.64 | G34: 181 | H34: 7.11
A35: 32 | B35: 5.44 | D35: 107 | E35: 6.71 | G35: 182 | H35: 7.2
A36: 33 | B36: 5.6 | D36: 108 | E36: 6.71 | G36: 183 | H36: 7.2
A37: 34 | B37: 5.66 | D37: 109 | E37: 6.48 | G37: 184 | H37: 6.85
A38: 35 | B38: 5.82 | D38: 110 | E38: 6.48 | G38: 185 | H38: 7.11
A39: 36 | B39: 5.88 | D39: 111 | E39: 6.76 | G39: 186 | H39: 6.69
A40: 37 | B40: 5.83 | D40: 112 | E40: 6.45 | G40: 187 | H40: 7.17
A41: 38 | B41: 5.76 | D41: 113 | E41: 6.54 | G41: 188 | H41: 6.82
A42: 39 | B42: 5.89 | D42: 114 | E42: 6.65 | G42: 189 | H42: 7.71
A43: 40 | B43: 5.66 | D43: 115 | E43: 6.49 | G43: 190 | H43: 7.46
A44: 41 | B44: 5.69 | D44: 116 | E44: 6.33 | G44: 191 | H44: 7.55
A45: 42 | B45: 5.76 | D45: 117 | E45: 6.46 | G45: 192 | H45: 7.52
A46: 43 | B46: 5.75 | D46: 118 | E46: 6.74 | G46: 193 | H46: 7.52
A47: 44 | B47: 5.75 | D47: 119 | E47: 6.58 | G47: 194 | H47: 7.8
A48: 45 | B48: 5.53 | D48: 120 | E48: 6.79 | G48: 195 | H48: 7.56
A49: 46 | B49: 5.53 | D49: 121 | E49: 6.64 | G49: 196 | H49: 7.65
A50: 47 | B50: 5.85 | D50: 122 | E50: 6.64 | G50: 197 | H50: 7.3
A51: 48 | B51: 5.78 | D51: 123 | E51: 6.74 | G51: 198 | H51: 7.62
A52: 49 | B52: 5.85 | D52: 124 | E52: 6.73 | G52: 199 | H52: 7.2
A53: 50 | B53: 5.63 | D53: 125 | E53: 6.51 | G53: 200 | H53: 7.27
A54: 51 | B54: 5.63 | D54: 126 | E54: 6.89 | G54: 201 | H54: 7.62
A55: 52 | B55: 5.84 | D55: 127 | E55: 6.95 | G55: 202 | H55: 7.24
A56: 53 | B56: 5.62 | D56: 128 | E56: 6.74 | G56: 203 | H56: 7.65
A57: 54 | B57: 5.21 | D57: 129 | E57: 6.73 | G57: 204 | H57: 7.3
A58: 55 | B58: 6.11 | D58: 130 | E58: 6.8 | G58: 205 | H58: 8
A59: 56 | B59: 6.11 | D59: 131 | E59: 6.58 | G59: 206 | H59: 8.09
A60: 57 | B60: 6.17 | D60: 132 | E60: 6.58 | G60: 207 | H60: 7.74
A61: 58 | B61: 6.17 | D61: 133 | E61: 6.86 | G61: 208 | H61: 7.71
A62: 59 | B62: 5.95 | D62: 134 | E62: 6.55 | G62: 209 | H62: 8.18
A63: 60 | B63: 6.11 | D63: 135 | E63: 6.64
A64: 61 | B64: 6.04 | D64: 136 | E64: 6.22
A65: 62 | B65: 5.89 | D65: 137 | E65: 6.83
A66: 63 | B66: 6.17 | D66: 138 | E66: 6.83
A67: 64 | B67: 5.95 | D67: 139 | E67: 6.67
A68: 65 | B68: 5.86 | D68: 140 | E68: 6.67
A69: 66 | B69: 6.2 | D69: 141 | E69: 6.82
A70: 67 | B70: 6.2 | D70: 142 | E70: 6.51
A71: 68 | B71: 6.26 | D71: 143 | E71: 6.6
A72: 69 | B72: 6.04 | D72: 144 | E72: 6.67
A73: 70 | B73: 6.2 | D73: 145 | E73: 6.25
A74: 71 | B74: 5.98 | D74: 146 | E74: 6.89
A75: 72 | B75: 6.26 | D75: 147 | E75: 6.64
A76: 73 | B76: 6.04 | D76: 148 | E76: 6.73
A77: 74 | B77: 6.2 | D77: 149 | E77: 6.67
